fUST/lending_fUST_20240415
["ID","MTS","AMOUNT","RATE_DAILY","PERIOD"]
[322627600,1713133842514,-15565.81,0.00038356,7]
[322627601,1713133842523,-538.24,0.00038356,7]
[322627603,1713133842533,-2140.64,0.00038356,7]
[322627604,1713133842543,-500.0,0.00038356,7]
[322627605,1713133842554,-500.0,0.00038356,7]
[322627607,1713133842563,-500.0,0.00038356,7]
[322627609,1713133842573,-500.0,0.00038356,7]
[322627611,1713133842582,-3649.9,0.00038356,7]
[322627612,1713133842592,-500.0,0.00038356,7]
[322627614,1713133842601,-500.0,0.00038356,7]
[322627616,1713133842610,-523.59,0.00038356,7]
[322627619,1713133842619,-500.0,0.00038356,7]
[322627623,1713133842628,-500.0,0.00038356,7]
[322627625,1713133842638,-500.0,0.00038356,7]
[322627628,1713133842648,-500.0,0.00038356,7]
[322627630,1713133842657,-500.0,0.00038356,7]
[322627632,1713133842666,-500.0,0.00038356,7]
[322627633,1713133842675,-4523.01,0.00038356,7]
[322627634,1713133842684,-500.0,0.00038356,7]
[322627635,1713133842693,-525.19,0.00038356,7]
[322627636,1713133842702,-500.0,0.00038356,7]
[322627637,1713133842711,-500.0,0.00038356,7]
[322627638,1713133842723,-500.0,0.00038356,7]
[322627639,1713133842734,-502.81429633,0.00038356,7]
[322627640,1713133842743,-500.0,0.00038356,7]
[322627641,1713133842752,-500.0,0.00038356,7]
[322627642,1713133842762,-500.0,0.00038356,7]
[322627643,1713133842771,-2376.83,0.00038356,7]
[322627644,1713133842780,-500.0,0.00038356,7]
[322627645,1713133842789,-500.0,0.00038356,7]
[322627646,1713133842798,-887.64,0.00038356,7]
[322627647,1713133842807,-500.0,0.00038356,7]
[322627648,1713133842816,-500.0,0.00038356,7]
[322627649,1713133842825,-1774.85,0.00038356,7]
[322627650,1713133842835,-500.0,0.00038356,7]
[322627651,1713133842844,-501.72300528,0.00038356,7]
[322627652,1713133842853,-500.0,0.00038356,7]
[322627653,1713133842862,-552.31111648,0.00038356,7]
[322627654,1713133842871,-494.01116644,0.00038356,7]
[322627655,1713133842880,-500.0,0.00038356,7]
[322627656,1713133842889,-501.00546119,0.00038356,7]
[322627657,1713133842899,-500.0,0.00038356,7]
[322627658,1713133842908,-500.0,0.00038356,7]
[322627659,1713133842917,-500.0,0.00038356,7]
[322627660,1713133842926,-500.0,0.00038356,7]
[322627661,1713133842935,-2197.45,0.00038356,7]
[322627662,1713133842945,-1076.78,0.00038356,7]
[322627663,1713133842954,-500.0,0.00038356,7]
[322627664,1713133842962,-41591.98,0.00038356,7]
[322627665,1713133842973,-500.0,0.00038356,7]
[322627666,1713133842982,-1482.39,0.00038356,7]
[322627667,1713133842991,-500.0,0.00038356,7]
[322627668,1713133843000,-500.0,0.00038356,7]
[322627669,1713133843010,-558.29,0.00038356,7]
[322627670,1713133843018,-2168.62,0.00038356,7]
[322627671,1713133843028,-500.0,0.00038356,7]
[322627672,1713133843037,-500.0,0.00038356,7]
[322627673,1713133843046,-506.19990765,0.00038356,7]
[322627674,1713133843055,-4374.71,0.00038356,7]
[322627675,1713133843064,-500.0,0.00038356,7]
[322627676,1713133843073,-500.0,0.00038356,7]
[322627677,1713133843083,-520.90262697,0.00038356,7]
[322627678,1713133843092,-500.0,0.00038356,7]
[322627679,1713133843101,-10532.87,0.00038356,7]
[322627680,1713133843110,-500.0,0.00038356,7]
[322627681,1713133843119,-838.68,0.00038356,7]
[322627682,1713133843128,-2806.22,0.00038356,7]
[322627683,1713133843138,-509.95726876,0.00038356,7]
[322627684,1713133843147,-691.83,0.00038356,7]
[322627685,1713133843156,-500.0,0.00038356,7]
[322627686,1713133843165,-999.89,0.00038356,7]
[322627687,1713133843174,-714.38,0.00038356,7]
[322627688,1713133843183,-500.0,0.00038356,7]
[322627689,1713133843192,-500.0,0.00038356,7]
[322627690,1713133843201,-500.0,0.00038356,7]
[322627691,1713133843211,-500.0,0.00038356,7]
[322627692,1713133843222,-2908.51,0.00038356,7]
[322627693,1713133843231,-500.0,0.00038356,7]
[322627694,1713133843241,-500.0,0.00038356,7]
[322627695,1713133843250,-2313.71,0.00038356,7]
[322627696,1713133843259,-627.97,0.00038356,7]
[322627698,1713133843268,-500.0,0.00038356,7]
[322627699,1713133843277,-500.0,0.00038356,7]
[322627700,1713133843286,-503.91995,0.00038356,7]
[322627701,1713133843295,-501.29234121,0.00038356,7]
[322627702,1713133843304,-500.0,0.00038356,7]
[322627703,1713133843314,-500.0,0.00038356,7]
[322627704,1713133843322,-500.62077655,0.00038356,2]
[322627705,1713133843332,-4816.39,0.00038356,7]
[322627706,1713133843341,-984.43,0.00038356,7]
[322627707,1713133843350,-500.0,0.00038356,7]
[322627708,1713133843359,-500.0,0.00038356,7]
[322627709,1713133843367,-7770.49,0.00038356,7]
[322627710,1713133843377,-500.0,0.00038356,7]
[322627711,1713133843386,-500.0,0.00038356,7]
[322627712,1713133843394,-712.93,0.00038356,7]
[322627713,1713133843403,-332.59073398,0.00038524,8]
[322627714,1713133843412,-188.75485878,0.00038628,2]
[322627715,1713133843421,-465.26500893,0.00038629,4]
[322627716,1713133843431,-500.0,0.00038629,10]
[322627717,1713133843440,-500.0,0.00038629,10]
[322627718,1713133843449,-500.0,0.00038629,10]
[322627719,1713133843459,-329.86833546,0.00038629,10]
[322627720,1713133843468,-500.0,0.0003863,7]
[322627721,1713133843478,-500.0,0.0003863,7]
[322627723,1713133843487,-500.0,0.0003863,7]
[322627725,1713133843497,-377.37248519,0.0003863,7]
[322627726,1713133843506,-500.0,0.0003863,7]
[322627727,1713133843516,-500.0,0.0003863,7]
[322627728,1713133843526,-500.0,0.0003863,7]
[322627729,1713133843538,-500.0,0.0003863,7]
[322627730,1713133843547,-500.0,0.0003863,7]
[322627731,1713133843557,-500.0,0.0003863,7]
[322627733,1713133843566,-1000.0,0.0003863,2]
[322627735,1713133843576,-500.0,0.0003863,7]
[322627737,1713133843585,-500.0,0.0003863,7]
[322627739,1713133843593,-786.1,0.0003863,7]
[322627740,1713133843602,-503.24526326,0.0003863,7]
[322627741,1713133843611,-510.97725975,0.0003863,7]
[322627742,1713133843622,-615.48892633,0.0003863,7]
[322627743,1713133843631,-500.0,0.0003863,7]
[322627744,1713133843640,-586.3,0.0003863,7]
[322627745,1713133843649,-500.0,0.0003863,7]
[322627746,1713133843658,-525.0,0.0003863,2]
[322627747,1713133843666,-500.0,0.0003863,7]
[322627748,1713133843674,-500.0,0.0003863,7]
[322627749,1713133843683,-500.0,0.0003863,7]
[322627751,1713133843693,-500.0,0.0003863,7]
[322627753,1713133843702,-500.0,0.0003863,7]
[322627754,1713133843711,-500.0,0.0003863,7]
[322627755,1713133843726,-517.79576344,0.0003863,7]
[322627756,1713133843736,-500.0,0.0003863,7]
[322627757,1713133843747,-500.0,0.0003863,7]
[322627758,1713133843757,-1609.61,0.0003863,7]
[322627759,1713133843767,-500.0,0.0003863,7]
[322627760,1713133843777,-500.0,0.0003863,7]
[322627761,1713133843787,-500.0,0.0003863,7]
[322627762,1713133843797,-500.0,0.0003863,7]
[322627763,1713133843807,-500.0,0.0003863,7]
[322627764,1713133843817,-500.0,0.0003863,7]
[322627765,1713133843828,-500.0,0.0003863,7]
[322627767,1713133843837,-500.0,0.0003863,7]
[322627769,1713133843848,-159.46396657,0.0003863,7]
[322627770,1713133843858,-527.46487422,0.0003863,7]
[322627771,1713133843870,-500.0,0.0003863,7]
[322627772,1713133843881,-500.0,0.0003863,7]
[322627773,1713133843892,-500.0,0.0003863,7]
[322627775,1713133843902,-500.0,0.0003863,7]
[322627776,1713133843911,-500.0,0.0003863,7]
[322627777,1713133843920,-1701.28,0.0003863,7]
[322627778,1713133843930,-500.0,0.0003863,7]
[322627779,1713133843939,-500.0,0.0003863,7]
[322627780,1713133843949,-500.0,0.0003863,7]
[322627781,1713133843959,-500.0,0.0003863,7]
[322627782,1713133843974,-500.0,0.0003863,7]
[322627783,1713133843985,-500.0,0.0003863,7]
[322627784,1713133843994,-500.0,0.0003863,7]
[322627785,1713133844004,-339.27618828,0.0003863,7]
[322627786,1713133844013,-500.0,0.0003863,7]
[322627787,1713133844023,-500.0,0.0003863,7]
[322627788,1713133844032,-500.0,0.0003863,7]
[322627789,1713133844042,-534.54505286,0.0003863,7]
[322627790,1713133844051,-500.0,0.0003863,7]
[322627791,1713133844061,-500.0,0.0003863,7]
[322627792,1713133844077,-500.0,0.0003863,7]
[322627793,1713133844086,-500.0,0.0003863,7]
[322627794,1713133844097,-500.0,0.0003863,7]
[322627795,1713133844105,-488.85023791,0.0003863,7]
[322627796,1713133844114,-485.93646374,0.0003863,7]
[322627797,1713133844123,-500.0,0.0003863,7]
[322627798,1713133844132,-674.91,0.0003863,7]
[322627799,1713133844141,-500.0,0.0003863,7]
[322627800,1713133844151,-500.0,0.0003863,7]
[322627801,1713133844160,-391.71794438,0.0003863,7]
[322627802,1713133844170,-500.0,0.0003863,7]
[322627803,1713133844179,-500.0,0.0003863,7]
[322627804,1713133844188,-500.0,0.0003863,7]
[322627805,1713133844197,-608.71,0.0003863,7]
[322627806,1713133844206,-500.0,0.0003863,7]
[322627807,1713133844215,-500.0,0.0003863,7]
[322627808,1713133844228,-500.0,0.0003863,7]
[322627809,1713133844238,-500.0,0.0003863,7]
[322627810,1713133844247,-500.0,0.0003863,7]
[322627811,1713133844256,-500.0,0.0003863,7]
[322627812,1713133844265,-1358.35,0.0003863,7]
[322627813,1713133844275,-515.0,0.0003863,7]
[322627814,1713133844284,-500.0,0.0003863,7]
[322627815,1713133844294,-1670.79,0.0003863,7]
[322627816,1713133844303,-382.88053639,0.0003863,7]
[322627817,1713133844312,-500.0,0.0003863,7]
[322627818,1713133844321,-500.0,0.0003863,7]
[322627819,1713133844331,-498.41868532,0.0003863,7]
[322627820,1713133844340,-2409.82,0.0003863,7]
[322627821,1713133844349,-500.0,0.0003863,7]
[322627822,1713133844359,-500.0,0.0003863,7]
[322627823,1713133844369,-500.0,0.0003863,7]
[322627824,1713133844378,-500.0,0.0003863,7]
[322627825,1713133844387,-500.0,0.0003863,7]
[322627826,1713133844396,-500.0,0.0003863,7]
[322627827,1713133844405,-500.0,0.0003863,7]
[322627828,1713133844415,-500.0,0.0003863,7]
[322627829,1713133844424,-510.31776424,0.0003863,7]
[322627830,1713133844434,-500.0,0.0003863,7]
[322627831,1713133844442,-646.62,0.0003863,7]
[322627832,1713133844452,-2157.34,0.0003863,7]
[322627833,1713133844462,-500.0,0.0003863,7]
[322627834,1713133844474,-500.0,0.0003863,7]
[322627835,1713133844483,-2852.48,0.0003863,7]
[322627836,1713133844492,-500.0,0.0003863,7]
[322627837,1713133844500,-500.0,0.0003863,7]
[322627838,1713133844509,-19817.22,0.0003863,7]
[322627839,1713133844518,-592.68,0.0003863,7]
[322627840,1713133844527,-500.0,0.0003863,7]
[322627841,1713133844537,-595.09,0.0003863,7]
[322627842,1713133844547,-626.04,0.0003863,7]
[322627843,1713133844557,-1058.37,0.0003863,7]
[322627844,1713133844565,-500.0,0.0003863,7]
[322627845,1713133844574,-500.0,0.0003863,7]
[322627846,1713133844583,-500.0,0.0003863,7]
[322627847,1713133844593,-6268.74,0.0003863,7]
[322627848,1713133844705,-500.0,0.0003863,7]
[322627849,1713133844717,-500.0,0.0003863,7]
[322627850,1713133844726,-653.28,0.0003863,7]
[322627851,1713133844735,-500.0,0.0003863,7]
[322627852,1713133844744,-824.32,0.0003863,7]
[322627853,1713133844753,-741.95,0.0003863,7]
[322627854,1713133844762,-1567.6,0.0003863,7]
[322627855,1713133844771,-566.31201203,0.0003863,7]
[322627856,1713133844780,-15565.81,0.0003863,7]
[322627857,1713133844789,-538.24,0.0003863,7]
[322627858,1713133844798,-2140.64,0.0003863,7]
[322627859,1713133844807,-500.0,0.0003863,7]
[322627860,1713133844816,-500.0,0.0003863,7]
[322627861,1713133844825,-500.0,0.0003863,7]
[322627862,1713133844834,-3649.9,0.0003863,7]
[322627863,1713133844843,-500.0,0.0003863,7]
[322627864,1713133844852,-523.59,0.0003863,7]
[322627865,1713133844861,-500.0,0.0003863,7]
[322627866,1713133844870,-500.0,0.0003863,7]
[322627867,1713133844879,-500.0,0.0003863,7]
[322627868,1713133844888,-185.44984037,0.0003863,7]
[322627869,1713133844897,-500.0,0.0003863,7]
[322627870,1713133844906,-500.0,0.0003863,7]
[322627871,1713133844915,-4523.01,0.0003863,7]
[322627872,1713133844925,-342.35558158,0.0003863,7]
[322627873,1713133844934,-525.19,0.0003863,7]
[322627874,1713133844943,-500.0,0.0003863,7]
[322627875,1713133844952,-500.0,0.0003863,7]
[322627876,1713133844961,-500.0,0.0003863,7]
[322627877,1713133844973,-500.0,0.0003863,7]
[322627878,1713133844982,-500.0,0.0003863,7]
[322627879,1713133844991,-500.0,0.0003863,7]
[322627880,1713133845000,-2376.83,0.0003863,7]
[322627881,1713133845010,-500.0,0.0003863,7]
[322627882,1713133845022,-500.0,0.0003863,7]
[322627883,1713133845031,-887.64,0.0003863,7]
[322627884,1713133845040,-500.0,0.0003863,7]
[322627885,1713133845050,-500.0,0.0003863,7]
[322627886,1713133845059,-1774.85,0.0003863,7]
[322627887,1713133845068,-500.0,0.0003863,7]
[322627888,1713133845077,-500.0,0.0003863,7]
[322627889,1713133845086,-500.0,0.0003863,7]
[322627890,1713133845095,-500.0,0.0003863,7]
[322627891,1713133845105,-500.0,0.0003863,7]
[322627892,1713133845113,-500.0,0.0003863,7]
[322627893,1713133845122,-2197.45,0.0003863,7]
[322627894,1713133845131,-1076.78,0.0003863,7]
[322627895,1713133845140,-500.0,0.0003863,7]
[322627896,1713133845149,-41591.98,0.0003863,7]
[322627897,1713133845159,-500.0,0.0003863,7]
[322627898,1713133845170,-1482.39,0.0003863,7]
[322627899,1713133845179,-595.7,0.0003863,7]
[322627900,1713133845189,-500.0,0.0003863,7]
[322627901,1713133845199,-2168.62,0.0003863,7]
[322627902,1713133845208,-500.0,0.0003863,7]
[322627903,1713133845221,-4374.71,0.0003863,7]
[322627904,1713133845230,-500.0,0.0003863,7]
[322627905,1713133845239,-500.0,0.0003863,7]
[322627906,1713133845249,-500.0,0.0003863,7]
[322627907,1713133845258,-10532.87,0.0003863,7]
[322627908,1713133845267,-500.0,0.0003863,7]
[322627909,1713133845277,-838.68,0.0003863,7]
[322627910,1713133845286,-2806.22,0.0003863,7]
[322627911,1713133845296,-691.83,0.0003863,7]
[322627912,1713133845305,-500.0,0.0003863,7]
[322627913,1713133845314,-999.89,0.0003863,7]
[322627914,1713133845323,-714.38,0.0003863,7]
[322627915,1713133845333,-322.6216621,0.0003863,7]
[322627916,1713133845342,-500.0,0.0003863,7]
[322627917,1713133845351,-2908.51,0.0003863,7]
[322627918,1713133845361,-500.0,0.0003863,7]
[322627919,1713133845370,-2313.71,0.0003863,7]
[322627920,1713133845380,-500.0,0.0003863,7]
[322627921,1713133845389,-500.0,0.0003863,7]
[322627922,1713133845400,-627.97,0.0003863,7]
[322627923,1713133845409,-500.0,0.0003863,7]
[322627924,1713133845419,-539.56676316,0.0003863,7]
[322627925,1713133845428,-500.0,0.0003863,7]
[322627927,1713133845438,-984.43,0.0003863,7]
[322627929,1713133845447,-4816.39,0.0003863,7]
[322627931,1713133845457,-500.0,0.0003863,7]
[322627933,1713133845466,-7770.49,0.0003863,7]
[322627935,1713133845481,-500.0,0.0003863,7]
[322627938,1713133845490,-500.0,0.0003863,7]
[322627940,1713133845499,-712.93,0.0003863,7]
[322627942,1713133845508,-9890.78583131,0.00038764,30]
[322627956,1713133845621,-6508.72846289,0.00038764,30]
[322627958,1713133845634,-6146.8098058,0.00038764,30]
[322627960,1713133845643,-260.52844465,0.000388,2]
[322627962,1713133845652,-177.0,0.000389,14]
[322627964,1713133845662,-2500.0,0.000389,20]
[322627966,1713133845671,-157.38490406,0.00038903,4]
[322627968,1713133845680,-51199.34836594,0.00038903,4]
[322627993,1713133845859,-666.48464709,0.00038903,4]
[322628015,1713133873150,156.87945876,0.00029177,2]
[322628016,1713133875474,924.03970052,0.00033121,4]
[322628017,1713133942531,166.666666,0.00035293,2]
[322628026,1713134827139,-175.07071029,0.00027359,2]
[322628029,1713134840092,-500.0,0.00027358,2]
[322628030,1713134854253,-154.82968734,0.00027356,2]
[322628031,1713134854274,-1189.20012988,0.00027357,2]
[322628032,1713134947100,-8000.0,0.00027353,2]
[322628033,1713134947121,-3739.92568584,0.00027354,2]
[322628034,1713134947144,-1878.39661406,0.00027395,2]
[322628035,1713134947165,-304.17480318,0.00027396,2]
[322628036,1713134947186,-329.65,0.00027397,7]
[322628037,1713134947208,-190.286151,0.00027397,2]
[322628038,1713134947230,-160.676168,0.00027397,2]
[322628039,1713134947251,-800.27816449,0.00029562,17]
[322628040,1713134947271,-180.881973,0.00029625,2]
[322628041,1713134947291,-300.0,0.00029698,2]
[322628042,1713134947311,-300.0,0.00029698,2]
[322628043,1713134947332,-24880.0,0.00029699,2]
[322628044,1713134947353,-175.6790731,0.000304,2]
[322628045,1713134947374,-420.0,0.00032018,2]
[322628046,1713134947397,-166.666666,0.00032382,2]
[322628047,1713134947419,-420.0,0.00032668,2]
[322628048,1713134947440,-2998.84939048,0.00033193,2]
[322628049,1713134947460,-166.666666,0.00033265,2]
[322628050,1713134947482,-166.666666,0.00034148,2]
[322628051,1713134947506,-176.169986,0.00034395,2]
[322628052,1713134947526,-291.01689223,0.00034469,7]
[322628053,1713134947547,-587.0,0.00034519,2]
[322628054,1713134959085,-166.666666,0.00035031,2]
[322628055,1713134959106,-219.98265552,0.00035115,2]
[322628056,1713134959127,-219.98265552,0.0003528,2]
[322628057,1713134959147,-649.92327912,0.00035293,4]
[322628092,1713135032127,-154.82968734,0.00035445,4]
[322628094,1713135032137,-219.98265552,0.00035446,2]
[322628096,1713135032147,-42.70406562,0.00035611,2]
[322628115,1713135032314,-177.2785899,0.00035611,2]
[322628117,1713135032323,-199.319085,0.00035616,120]
[322628119,1713135032333,-219.98265552,0.00035776,2]
[322628121,1713135032343,-166.666666,0.00035913,2]
[322628123,1713135032353,-150.40794366,0.00035942,2]
[322628185,1713135038147,-69.57471186,0.00035942,2]
[322628186,1713135038157,-1043.55367448,0.00036106,2]
[322628187,1713135038166,-219.98265552,0.00036107,2]
[322628188,1713135038175,-219.98265552,0.00036272,2]
[322628190,1713135038184,-300.35578825,0.000364,2]
[322628192,1713135038194,-219.98265552,0.00036438,2]
[322628193,1713135038203,-219.98265552,0.00036603,2]
[322628195,1713135038212,-219.98265552,0.00036768,2]
[322628197,1713135038221,-166.666666,0.00036796,2]
[322628198,1713135038230,-8000.0,0.00036932,4]
[322628199,1713135038239,-219.98265552,0.00036933,2]
[322628200,1713135038249,-219.98265552,0.00037099,2]
[322628201,1713135038258,-500.0,0.00037216,2]
[322628202,1713135038267,-219.98265552,0.00037264,2]
[322628203,1713135038276,-219.98265552,0.00037429,2]
[322628204,1713135038284,-421.6130992,0.00037578,2]
[322628205,1713135038293,-219.98265552,0.00037595,2]
[322628206,1713135038302,-219.98265552,0.0003776,2]
[322628208,1713135038312,-400.0,0.00037925,2]
[322628210,1713135038321,-400.0,0.00037925,2]
[322628212,1713135038330,-219.98265552,0.00037925,2]
[322628213,1713135038339,-6576.37363606,0.00037939,7]
[322628214,1713135038503,-219.98265552,0.00038091,2]
[322628215,1713135038513,-203.0300069,0.00038106,2]
[322628216,1713135038522,-2998.84939048,0.00038193,2]
[322628217,1713135038532,-2000.0,0.00038256,2]
[322628218,1713135038541,-219.98265552,0.00038256,2]
[322628219,1713135038550,-513.63019348,0.00038256,2]
[322628220,1713135038561,-513.63019345,0.00038325,2]
[322628221,1713135038570,-465.26500893,0.00038354,4]
[322628222,1713135038579,-188.75485878,0.00038354,2]
[322628223,1713135038588,-907.50348153,0.00038354,4]
[322628224,1713135038597,-282.07714665,0.00038354,4]
[322628225,1713135038607,-500.0,0.00038354,2]
[322628226,1713135038616,-3736.6295409,0.00038354,4]
[322628227,1713135038625,-351.63345974,0.00038354,4]
[322628228,1713135038635,-842.6477665,0.00038354,37]
[322628229,1713135038644,-500.0,0.00038355,15]
[322628230,1713135038654,-216.16701322,0.00038355,15]
[322628231,1713135038663,-12291.26854652,0.00038356,5]
[322628232,1713135038671,-1475.48,0.00038356,7]
[322628233,1713135038680,-500.0,0.00038356,7]
[322628234,1713135038689,-500.0,0.00038356,7]
[322628235,1713135038698,-368.83977831,0.00038356,7]
[322628236,1713135038708,-500.0,0.00038356,7]
[322628237,1713135038716,-1559.51,0.00038356,7]
[322628238,1713135038725,-500.0,0.00038356,7]
[322628239,1713135038735,-500.0,0.00038356,7]
[322628240,1713135038743,-500.0,0.00038356,7]
[322628241,1713135038752,-500.0,0.00038356,7]
[322628242,1713135038761,-500.0,0.00038356,7]
[322628243,1713135038770,-500.0,0.00038356,7]
[322628244,1713135038779,-500.0,0.00038356,7]
[322628245,1713135038788,-500.0,0.00038356,7]
[322628246,1713135038797,-500.0,0.00038356,7]
[322628247,1713135038806,-500.0,0.00038356,7]
[322628248,1713135038815,-500.0,0.00038356,7]
[322628249,1713135038824,-500.0,0.00038356,7]
[322628250,1713135038833,-500.0,0.00038356,7]
[322628251,1713135038843,-500.0,0.00038356,7]
[322628252,1713135038852,-500.0,0.00038356,7]
[322628253,1713135038861,-500.0,0.00038356,7]
[322628254,1713135038870,-500.0,0.00038356,7]
[322628255,1713135038879,-500.0,0.00038356,7]
[322628256,1713135038888,-500.0,0.00038356,7]
[322628257,1713135038897,-500.0,0.00038356,7]
[322628258,1713135038910,-500.0,0.00038356,7]
[322628259,1713135038919,-500.0,0.00038356,7]
[322628260,1713135038927,-1601.17,0.00038356,7]
[322628261,1713135038936,-382.88053639,0.00038356,7]
[322628262,1713135038946,-500.0,0.00038356,7]
[322628263,1713135038955,-500.0,0.00038356,7]
[322628264,1713135038964,-510.31776424,0.00038356,7]
[322628265,1713135038973,-500.0,0.00038356,7]
[322628266,1713135038983,-500.0,0.00038356,7]
[322628267,1713135038992,-500.0,0.00038356,7]
[322628268,1713135039001,-500.0,0.00038356,7]
[322628269,1713135039010,-500.0,0.00038356,7]
[322628270,1713135039019,-500.0,0.00038356,7]
[322628271,1713135039029,-452.73329353,0.00038356,7]
[322628272,1713135039038,-500.0,0.00038356,7]
[322628273,1713135039047,-525.0,0.00038356,2]
[322628274,1713135039056,-500.0,0.00038356,7]
[322628275,1713135039065,-260.97613995,0.00038356,7]
[322628276,1713135039076,-500.0,0.00038356,7]
[322628277,1713135039084,-500.0,0.00038356,7]
[322628278,1713135039093,-500.0,0.00038356,7]
[322628279,1713135039102,-500.0,0.00038356,7]
[322628280,1713135039111,-500.0,0.00038356,7]
[322628281,1713135039121,-500.0,0.00038356,7]
[322628282,1713135039130,-500.0,0.00038356,7]
[322628283,1713135039141,-500.0,0.00038356,7]
[322628284,1713135039150,-500.0,0.00038356,7]
[322628285,1713135039159,-500.0,0.00038356,7]
[322628286,1713135039168,-500.0,0.00038356,7]
[322628287,1713135039178,-500.0,0.00038356,7]
[322628288,1713135039188,-500.0,0.00038356,7]
[322628289,1713135039198,-500.0,0.00038356,7]
[322628290,1713135039210,-500.0,0.00038356,7]
[322628291,1713135039220,-500.0,0.00038356,7]
[322628292,1713135039230,-500.0,0.00038356,7]
[322628293,1713135039242,-531.60733744,0.00038356,7]
[322628294,1713135039251,-500.0,0.00038356,7]
[322628295,1713135039261,-500.0,0.00038356,7]
[322628296,1713135039272,-524.14,0.00038356,7]
[322628297,1713135039282,-500.0,0.00038356,7]
[322628298,1713135039292,-500.0,0.00038356,7]
[322628299,1713135039302,-500.0,0.00038356,7]
[322628300,1713135039315,-500.0,0.00038356,7]
[322628301,1713135039325,-500.0,0.00038356,7]
[322628302,1713135039335,-342.35558158,0.00038356,7]
[322628303,1713135039345,-500.0,0.00038356,7]
[322628304,1713135039353,-500.0,0.00038356,7]
[322628305,1713135039360,-500.0,0.00038356,7]
[322628306,1713135039368,-500.0,0.00038356,7]
[322628307,1713135039376,-500.0,0.00038356,7]
[322628308,1713135039383,-500.0,0.00038356,7]
[322628309,1713135039391,-500.0,0.00038356,7]
[322628310,1713135039399,-500.0,0.00038356,7]
[322628311,1713135039408,-500.0,0.00038356,7]
[322628312,1713135039417,-500.0,0.00038356,7]
[322628313,1713135039426,-500.0,0.00038356,7]
[322628314,1713135039436,-500.0,0.00038356,7]
[322628315,1713135039446,-500.0,0.00038356,7]
[322628316,1713135039457,-500.0,0.00038356,7]
[322628317,1713135039466,-500.0,0.00038356,7]
[322628318,1713135039475,-500.0,0.00038356,7]
[322628319,1713135039484,-500.0,0.00038356,7]
[322628320,1713135039493,-500.0,0.00038356,7]
[322628321,1713135039502,-504.16661416,0.00038356,7]
[322628322,1713135039511,-714.38,0.00038356,7]
[322628323,1713135039520,-500.0,0.00038356,7]
[322628324,1713135039529,-503.24110331,0.00038356,7]
[322628325,1713135039538,-509.95726876,0.00038356,7]
[322628327,1713135039547,-500.0,0.00038356,7]
[322628328,1713135039556,-500.0,0.00038356,7]
[322628329,1713135039565,-500.0,0.00038356,7]
[322628330,1713135039574,-500.0,0.00038356,7]
[322628331,1713135039583,-500.0,0.00038356,7]
[322628332,1713135039592,-503.91995,0.00038356,7]
[322628333,1713135039601,-501.29234121,0.00038356,7]
[322628334,1713135039610,-500.62077655,0.00038356,2]
[322628335,1713135039619,-500.0,0.00038356,7]
[322628336,1713135039628,-500.0,0.00038356,7]
[322628337,1713135039637,-500.0,0.00038356,7]